[Event "*** MasterClass Titled Tuesday Blitz"]
[Site "Chess.com"]
[Date "2017.08.01"]
[Round "4"]
[White "prochn"]
[Black "IMcoach"]
[Result "1-0"]
[WhiteElo "2267"]
[BlackElo "2324"]
[TimeControl "180+2"]
[EndTime "13:52:07 PDT"]
[Termination "prochn won by checkmate"]

1. d4 {[%clk 0:03:01.9]} 1... Nf6 {[%clk 0:03:00.4]} 2. c4 {[%clk 0:03:02.9]}
2... g6 {[%clk 0:03:01.7]} 3. g3 {[%clk 0:03:02.3]} 3... Bg7 {[%clk 0:03:03]} 4.
Bg2 {[%clk 0:03:03.7]} 4... O-O {[%clk 0:03:04.3]} 5. Nf3 {[%clk 0:03:03.3]}
5... d6 {[%clk 0:03:05]} 6. O-O {[%clk 0:03:03.5]} 6... Nbd7 {[%clk 0:03:05.2]}
7. Nc3 {[%clk 0:03:04.4]} 7... e5 {[%clk 0:03:06.1]} 8. e4 {[%clk 0:03:05]} 8...
a6 {[%clk 0:03:06.1]} 9. h3 {[%clk 0:03:01.4]} 9... Rb8 {[%clk 0:03:06.6]} 10.
d5 {[%clk 0:02:47.3]} 10... b5 {[%clk 0:03:05.7]} 11. cxb5 {[%clk 0:02:48.4]}
11... axb5 {[%clk 0:03:06.7]} 12. b4 {[%clk 0:02:48.9]} 12... Nb6 {[%clk
0:03:02.5]} 13. Nxb5 {[%clk 0:02:26.7]} 13... Nxe4 {[%clk 0:03:00]} 14. a4
{[%clk 0:02:20.6]} 14... Ba6 {[%clk 0:02:29.1]} 15. Re1 {[%clk 0:02:15.2]} 15...
Nf6 {[%clk 0:02:20.5]} 16. Na7 {[%clk 0:02:03.8]} 16... Bb7 {[%clk 0:01:32.9]}
17. Nc6 {[%clk 0:02:03.3]} 17... Bxc6 {[%clk 0:01:33.6]} 18. dxc6 {[%clk
0:02:05.2]} 18... Re8 {[%clk 0:01:18.6]} 19. Ng5 {[%clk 0:01:51.9]} 19... h6
{[%clk 0:01:15.4]} 20. Ne4 {[%clk 0:01:46.8]} 20... Nxe4 {[%clk 0:01:12.7]} 21.
Bxe4 {[%clk 0:01:48.7]} 21... d5 {[%clk 0:01:09.4]} 22. Bg2 {[%clk 0:01:48.2]}
22... e4 {[%clk 0:01:10.2]} 23. Rb1 {[%clk 0:01:47.2]} 23... Nc4 {[%clk
0:01:10.9]} 24. Qc2 {[%clk 0:01:36]} 24... Ne5 {[%clk 0:01:04.9]} 25. b5 {[%clk
0:01:32.1]} 25... f5 {[%clk 0:00:55.3]} 26. Rd1 {[%clk 0:01:26.4]} 26... d4
{[%clk 0:00:50.2]} 27. Bxe4 {[%clk 0:01:23.6]} 27... fxe4 {[%clk 0:00:50.1]} 28.
Qxe4 {[%clk 0:01:24.6]} 28... Qf6 {[%clk 0:00:34.7]} 29. Bf4 {[%clk 0:01:21.3]}
29... Rbd8 {[%clk 0:00:19.4]} 30. a5 {[%clk 0:01:18.1]} 30... g5 {[%clk
0:00:20.2]} 31. Bxe5 {[%clk 0:01:17]} 31... Rxe5 {[%clk 0:00:21.4]} 32. Qd3
{[%clk 0:01:15.7]} 32... Rf5 {[%clk 0:00:14.4]} 33. Rd2 {[%clk 0:01:14.8]} 33...
Rf3 {[%clk 0:00:14.8]} 34. Qc4+ {[%clk 0:01:14.1]} 34... Kh8 {[%clk 0:00:16]}
35. b6 {[%clk 0:01:14.7]} 35... Rf8 {[%clk 0:00:17.1]} 36. Rbb2 {[%clk
0:00:59.6]} 36... d3 {[%clk 0:00:09]} 37. Ra2 {[%clk 0:00:59.2]} 37... Qe5
{[%clk 0:00:07.9]} 38. Qg4 {[%clk 0:00:51]} 38... Qe1+ {[%clk 0:00:08.2]} 39.
Kg2 {[%clk 0:00:51.9]} 39... Rxf2+ {[%clk 0:00:06.3]} 40. Rxf2 {[%clk
0:00:52.4]} 40... Rxf2+ {[%clk 0:00:06.9]} 41. Rxf2 {[%clk 0:00:53.2]} 41... d2
{[%clk 0:00:08.5]} 42. bxc7 {[%clk 0:00:52.1]} 42... d1=Q {[%clk 0:00:09.3]} 43.
c8=Q+ {[%clk 0:00:52.5]} 43... Kh7 {[%clk 0:00:10.9]} 44. Qgf5# {[%clk
0:00:51.8]} 1-0

[Event "*** MasterClass Titled Tuesday Blitz"]
[Site "Chess.com"]
[Date "2017.08.01"]
[Round "4"]
[White "Gordima"]
[Black "IIIlllII1llIl"]
[Result "0-1"]
[WhiteElo "2601"]
[BlackElo "2637"]
[TimeControl "180+2"]
[EndTime "13:52:15 PDT"]
[Termination "IIIlllII1llIl won on time"]

1. c4 {[%clk 0:02:58.9]} 1... b6 {[%clk 0:02:49.7]} 2. Nc3 {[%clk 0:02:58.5]}
2... Bb7 {[%clk 0:02:50.5]} 3. d4 {[%clk 0:02:54.3]} 3... e6 {[%clk 0:02:51.3]}
4. Qc2 {[%clk 0:02:51.3]} 4... Bb4 {[%clk 0:02:48.2]} 5. a3 {[%clk 0:02:44.2]}
5... Bxc3+ {[%clk 0:02:48.7]} 6. Qxc3 {[%clk 0:02:46.1]} 6... Nf6 {[%clk
0:02:45.1]} 7. Nf3 {[%clk 0:02:47.2]} 7... O-O {[%clk 0:02:44]} 8. e3 {[%clk
0:02:48.7]} 8... d5 {[%clk 0:02:25.4]} 9. b3 {[%clk 0:02:45.6]} 9... c5 {[%clk
0:01:50.7]} 10. Be2 {[%clk 0:02:42.8]} 10... cxd4 {[%clk 0:01:46.7]} 11. exd4
{[%clk 0:02:39.6]} 11... dxc4 {[%clk 0:01:44.8]} 12. bxc4 {[%clk 0:02:40.2]}
12... Nc6 {[%clk 0:01:40.3]} 13. O-O {[%clk 0:02:38.3]} 13... Rc8 {[%clk
0:01:38.6]} 14. Bb2 {[%clk 0:02:02]} 14... Na5 {[%clk 0:00:59.2]} 15. Ne5 {[%clk
0:02:02.6]} 15... Ne4 {[%clk 0:00:59.8]} 16. Qe3 {[%clk 0:01:50.2]} 16... f6
{[%clk 0:00:46.5]} 17. d5 {[%clk 0:00:59.4]} 17... Nd6 {[%clk 0:00:35.7]} 18.
dxe6 {[%clk 0:00:24.6]} 18... fxe5 {[%clk 0:00:31.9]} 19. Qxe5 {[%clk
0:00:26.5]} 19... Qe7 {[%clk 0:00:22.7]} 20. Rad1 {[%clk 0:00:27.6]} 20... Rcd8
{[%clk 0:00:22.1]} 21. Rd4 {[%clk 0:00:24.3]} 21... Nc6 {[%clk 0:00:12]} 22. Qd5
{[%clk 0:00:18.4]} 22... Nxd4 {[%clk 0:00:08.9]} 23. Qxd4 {[%clk 0:00:18.9]}
23... Nf5 {[%clk 0:00:09.4]} 24. Qe5 {[%clk 0:00:19.2]} 24... Rde8 {[%clk
0:00:06.6]} 25. Bh5 {[%clk 0:00:19.1]} 25... Qxe6 {[%clk 0:00:05.2]} 26. Bxe8
{[%clk 0:00:19.5]} 26... Qxe5 {[%clk 0:00:06.2]} 27. Bxe5 {[%clk 0:00:21.4]}
27... Rxe8 {[%clk 0:00:07.7]} 28. f4 {[%clk 0:00:22.4]} 28... Ne3 {[%clk
0:00:06.7]} 29. Rc1 {[%clk 0:00:21.3]} 29... Rc8 {[%clk 0:00:05.7]} 30. Rc3
{[%clk 0:00:14.6]} 30... Nxc4 {[%clk 0:00:05.8]} 31. Bd4 {[%clk 0:00:13.2]}
31... Nd6 {[%clk 0:00:04.9]} 32. Rd3 {[%clk 0:00:07]} 32... Rc1+ {[%clk
0:00:05.5]} 33. Kf2 {[%clk 0:00:08.1]} 33... Ne4+ {[%clk 0:00:06.8]} 34. Ke3
{[%clk 0:00:06.6]} 34... Re1+ {[%clk 0:00:07.8]} 35. Kf3 {[%clk 0:00:06.9]}
35... Nc5+ {[%clk 0:00:09.2]} 0-1

[Event "*** MasterClass Titled Tuesday Blitz"]
[Site "Chess.com"]
[Date "2017.08.01"]
[Round "4"]
[White "TigranLPetrosyan"]
[Black "maciek_92"]
[Result "1-0"]
[WhiteElo "2750"]
[BlackElo "2520"]
[TimeControl "180+2"]
[EndTime "13:52:22 PDT"]
[Termination "TigranLPetrosyan won by resignation"]

1. Nf3 {[%clk 0:03:01.9]} 1... Nf6 {[%clk 0:02:59.5]} 2. g3 {[%clk 0:03:03.8]}
2... b6 {[%clk 0:02:58.8]} 3. Bg2 {[%clk 0:03:05.7]} 3... Bb7 {[%clk 0:03:00.2]}
4. d3 {[%clk 0:03:07]} 4... d5 {[%clk 0:02:57.3]} 5. Nbd2 {[%clk 0:03:07.3]}
5... e6 {[%clk 0:02:57.5]} 6. O-O {[%clk 0:03:05.9]} 6... Nbd7 {[%clk 0:02:59]}
7. Re1 {[%clk 0:03:02.1]} 7... Bc5 {[%clk 0:02:41.3]} 8. e3 {[%clk 0:02:35.2]}
8... O-O {[%clk 0:02:41.8]} 9. Qe2 {[%clk 0:02:36.6]} 9... e5 {[%clk 0:02:40.6]}
10. e4 {[%clk 0:02:36.9]} 10... Re8 {[%clk 0:02:37.7]} 11. c3 {[%clk 0:02:27.3]}
11... a5 {[%clk 0:02:37.3]} 12. a4 {[%clk 0:02:27.6]} 12... Bf8 {[%clk
0:02:20.7]} 13. exd5 {[%clk 0:02:02]} 13... Bxd5 {[%clk 0:02:20.4]} 14. Ne4
{[%clk 0:01:55.5]} 14... Nxe4 {[%clk 0:02:18.8]} 15. dxe4 {[%clk 0:01:57.4]}
15... Bb7 {[%clk 0:02:18.6]} 16. Bg5 {[%clk 0:01:55.4]} 16... Qc8 {[%clk
0:02:18.6]} 17. Bh3 {[%clk 0:01:48.6]} 17... Bc6 {[%clk 0:02:13.6]} 18. Red1
{[%clk 0:01:47.9]} 18... Bd6 {[%clk 0:02:14.5]} 19. Nh4 {[%clk 0:01:46.8]} 19...
Qb7 {[%clk 0:02:06.7]} 20. Nf5 {[%clk 0:01:37.1]} 20... Bxe4 {[%clk 0:01:53.4]}
21. Nxd6 {[%clk 0:01:25.7]} 21... cxd6 {[%clk 0:01:54.8]} 22. Bxd7 {[%clk
0:01:27.4]} 22... Bh1 {[%clk 0:01:53.4]} 23. Bh3 {[%clk 0:01:10.4]} 23... Bf3
{[%clk 0:01:54.1]} 24. Qb5 {[%clk 0:01:07.3]} 24... h6 {[%clk 0:01:54.1]} 25.
Be3 {[%clk 0:01:05.3]} 25... d5 {[%clk 0:01:24.6]} 26. Re1 {[%clk 0:00:58.2]}
26... Rab8 {[%clk 0:01:21.4]} 27. Bd2 {[%clk 0:00:56.9]} 27... Qe7 {[%clk
0:01:13.6]} 28. Re3 {[%clk 0:00:55.2]} 28... Qf6 {[%clk 0:01:13.2]} 29. Rae1
{[%clk 0:00:54.2]} 29... Rbd8 {[%clk 0:01:14.1]} 30. Qd3 {[%clk 0:00:49.3]}
30... Bh5 {[%clk 0:01:02.1]} 31. Qf5 {[%clk 0:00:50.3]} 31... Qxf5 {[%clk
0:00:59.6]} 32. Bxf5 {[%clk 0:00:52.2]} 32... e4 {[%clk 0:01:01.5]} 33. g4
{[%clk 0:00:51.5]} 33... g6 {[%clk 0:01:02.5]} 34. gxh5 {[%clk 0:00:52.2]} 34...
gxf5 {[%clk 0:01:03.6]} 35. Rg3+ {[%clk 0:00:53.9]} 35... Kh7 {[%clk 0:01:05.2]}
36. Be3 {[%clk 0:00:53.9]} 36... Rg8 {[%clk 0:01:04.1]} 37. Kg2 {[%clk
0:00:48.1]} 37... Rb8 {[%clk 0:00:59.9]} 38. Kh3 {[%clk 0:00:46]} 38... b5
{[%clk 0:01:00.9]} 39. axb5 {[%clk 0:00:46.2]} 39... Rxb5 {[%clk 0:01:00.9]} 40.
Reg1 {[%clk 0:00:44.2]} 40... Rxg3+ {[%clk 0:00:53.1]} 41. Rxg3 {[%clk
0:00:46.1]} 41... Rxb2 {[%clk 0:00:47.7]} 42. Bd4 {[%clk 0:00:47.3]} 42... f6
{[%clk 0:00:49.6]} 43. Bxf6 {[%clk 0:00:47.1]} 43... Rb7 {[%clk 0:00:51.3]} 44.
Bd4 {[%clk 0:00:44.9]} 44... f4 {[%clk 0:00:44.6]} 45. Rg6 {[%clk 0:00:45.6]}
45... a4 {[%clk 0:00:45.9]} 46. Ra6 {[%clk 0:00:44.8]} 46... Rf7 {[%clk
0:00:37]} 47. Ra8 {[%clk 0:00:44.8]} 1-0

[Event "*** MasterClass Titled Tuesday Blitz"]
[Site "Chess.com"]
[Date "2017.08.01"]
[Round "4"]
[White "Bryakin_Mikhail"]
[Black "rubhani"]
[Result "1-0"]
[WhiteElo "2541"]
[BlackElo "2388"]
[TimeControl "180+2"]
[EndTime "13:52:26 PDT"]
[Termination "Bryakin_Mikhail won by resignation"]

1. d4 {[%clk 0:03:00.5]} 1... Nf6 {[%clk 0:02:59.4]} 2. c4 {[%clk 0:02:58.5]}
2... c5 {[%clk 0:02:59.1]} 3. d5 {[%clk 0:02:59]} 3... b5 {[%clk 0:03:00.1]} 4.
cxb5 {[%clk 0:03:00.2]} 4... a6 {[%clk 0:03:01.5]} 5. e3 {[%clk 0:03:01.8]} 5...
axb5 {[%clk 0:02:58.4]} 6. Bxb5 {[%clk 0:03:03.7]} 6... Qa5+ {[%clk 0:02:50.1]}
7. Nc3 {[%clk 0:03:00]} 7... Bb7 {[%clk 0:02:50.2]} 8. Bd2 {[%clk 0:02:27.6]}
8... g6 {[%clk 0:02:44.6]} 9. Nge2 {[%clk 0:02:22.1]} 9... Bg7 {[%clk
0:02:45.2]} 10. O-O {[%clk 0:02:17.5]} 10... O-O {[%clk 0:02:45.5]} 11. a4
{[%clk 0:02:13]} 11... Qb6 {[%clk 0:02:13.2]} 12. e4 {[%clk 0:02:09.1]} 12... d6
{[%clk 0:01:44.7]} 13. Qc2 {[%clk 0:02:03.4]} 13... Ba6 {[%clk 0:01:37.3]} 14.
h3 {[%clk 0:01:59.6]} 14... Bxb5 {[%clk 0:01:37.9]} 15. axb5 {[%clk 0:01:52.9]}
15... Nbd7 {[%clk 0:01:38.6]} 16. Be3 {[%clk 0:01:49.2]} 16... Qb7 {[%clk
0:01:27.9]} 17. Ra3 {[%clk 0:01:44.4]} 17... Rfb8 {[%clk 0:01:05.2]} 18. Rfa1
{[%clk 0:01:41.1]} 18... Ne8 {[%clk 0:01:04.6]} 19. Rxa8 {[%clk 0:01:25.8]}
19... Rxa8 {[%clk 0:01:05.7]} 20. Rxa8 {[%clk 0:01:27.7]} 20... Qxa8 {[%clk
0:01:07.5]} 21. Qa4 {[%clk 0:01:29.2]} 21... Qb8 {[%clk 0:01:02.8]} 22. b4
{[%clk 0:01:23.9]} 22... Nb6 {[%clk 0:00:51.2]} 23. Qb3 {[%clk 0:01:09.7]} 23...
c4 {[%clk 0:00:52]} 24. Qa3 {[%clk 0:01:06.8]} 24... Nc7 {[%clk 0:00:50.2]} 25.
Qa5 {[%clk 0:01:07.7]} 25... Nca8 {[%clk 0:00:44.6]} 26. Bd4 {[%clk 0:01:07.6]}
26... Bh6 {[%clk 0:00:40.7]} 27. f4 {[%clk 0:01:00.9]} 27... e5 {[%clk
0:00:41.4]} 28. fxe5 {[%clk 0:00:58.8]} 28... dxe5 {[%clk 0:00:42.6]} 29. Bc5
{[%clk 0:00:59.4]} 29... Bd2 {[%clk 0:00:41.2]} 30. d6 {[%clk 0:00:59.2]} 30...
Qd8 {[%clk 0:00:34.4]} 31. Nd5 {[%clk 0:00:48.7]} 31... Qh4 {[%clk 0:00:29.4]}
32. Bxb6 {[%clk 0:00:28.4]} 32... Qe1+ {[%clk 0:00:20.8]} 33. Kh2 {[%clk
0:00:29.6]} 33... Qxe2 {[%clk 0:00:21.1]} 34. d7 {[%clk 0:00:18.6]} 34... Qxe4
{[%clk 0:00:13.4]} 35. d8=Q+ {[%clk 0:00:19.2]} 35... Kg7 {[%clk 0:00:15]} 36.
Qf6+ {[%clk 0:00:20.3]} 36... Kh6 {[%clk 0:00:15]} 37. Qf3 {[%clk 0:00:19.4]}
1-0

[Event "*** MasterClass Titled Tuesday Blitz"]
[Site "Chess.com"]
[Date "2017.08.01"]
[Round "4"]
[White "Jadro9"]
[Black "Divertissement"]
[Result "1-0"]
[WhiteElo "2366"]
[BlackElo "2389"]
[TimeControl "180+2"]
[EndTime "13:52:41 PDT"]
[Termination "Jadro9 won by resignation"]

1. e4 {[%clk 0:03:01.9]} 1... e6 {[%clk 0:03:00.2]} 2. d4 {[%clk 0:03:02.2]}
2... d5 {[%clk 0:02:58.1]} 3. exd5 {[%clk 0:03:03.7]} 3... exd5 {[%clk
0:02:58.8]} 4. c4 {[%clk 0:03:05.4]} 4... Nf6 {[%clk 0:02:58.7]} 5. Nc3 {[%clk
0:03:07]} 5... Be7 {[%clk 0:02:58.7]} 6. Bd3 {[%clk 0:03:08.6]} 6... dxc4 {[%clk
0:02:59.1]} 7. Bxc4 {[%clk 0:03:08.8]} 7... O-O {[%clk 0:03:01]} 8. Nge2 {[%clk
0:03:10]} 8... c6 {[%clk 0:03:00.2]} 9. O-O {[%clk 0:03:11.1]} 9... Nbd7 {[%clk
0:02:52.5]} 10. h3 {[%clk 0:03:11.6]} 10... Nb6 {[%clk 0:02:53.2]} 11. Bd3
{[%clk 0:03:13]} 11... Nbd5 {[%clk 0:02:52.3]} 12. Ng3 {[%clk 0:03:11.5]} 12...
g6 {[%clk 0:02:40.1]} 13. Bh6 {[%clk 0:03:10.9]} 13... Re8 {[%clk 0:02:41.1]}
14. Re1 {[%clk 0:03:11.3]} 14... Bf8 {[%clk 0:02:30.9]} 15. Bxf8 {[%clk
0:03:09.1]} 15... Rxf8 {[%clk 0:02:30.9]} 16. Qd2 {[%clk 0:03:10.6]} 16... Kg7
{[%clk 0:02:28.4]} 17. Qg5 {[%clk 0:03:09.3]} 17... Be6 {[%clk 0:02:21.9]} 18.
Qe5 {[%clk 0:02:52.9]} 18... Qc7 {[%clk 0:02:00.4]} 19. Nxd5 {[%clk 0:02:44.9]}
19... Qxe5 {[%clk 0:01:59.8]} 20. dxe5 {[%clk 0:02:46.6]} 20... Nxd5 {[%clk
0:02:01.2]} 21. Ne4 {[%clk 0:02:48.1]} 21... b6 {[%clk 0:01:55.5]} 22. a3 {[%clk
0:02:48.5]} 22... c5 {[%clk 0:01:57]} 23. Bb5 {[%clk 0:02:48.5]} 23... Rad8
{[%clk 0:01:57.1]} 24. Rad1 {[%clk 0:02:47.8]} 24... Nc7 {[%clk 0:01:51.3]} 25.
Bf1 {[%clk 0:02:40]} 25... Bb3 {[%clk 0:01:52.2]} 26. Rxd8 {[%clk 0:02:40.5]}
26... Rxd8 {[%clk 0:01:53]} 27. Nd6 {[%clk 0:02:38.8]} 27... Ne8 {[%clk
0:01:52.7]} 28. Ne4 {[%clk 0:02:34.6]} 28... Rd5 {[%clk 0:01:39.9]} 29. f4
{[%clk 0:02:23.1]} 29... Rd4 {[%clk 0:01:39.9]} 30. g3 {[%clk 0:02:20.1]} 30...
Nc7 {[%clk 0:01:35.1]} 31. Re3 {[%clk 0:02:02.7]} 31... c4 {[%clk 0:01:33.3]}
32. Kf2 {[%clk 0:01:31.2]} 32... b5 {[%clk 0:01:27.7]} 33. Nd6 {[%clk
0:01:22.6]} 33... a5 {[%clk 0:01:21.1]} 34. f5 {[%clk 0:01:19.4]} 34... b4
{[%clk 0:01:14.2]} 35. axb4 {[%clk 0:01:15.1]} 35... axb4 {[%clk 0:01:14.6]} 36.
f6+ {[%clk 0:01:10]} 36... Kg8 {[%clk 0:01:01.3]} 37. Re1 {[%clk 0:01:04.1]}
37... c3 {[%clk 0:00:48.1]} 38. bxc3 {[%clk 0:01:03.5]} 38... bxc3 {[%clk
0:00:50]} 39. Re3 {[%clk 0:01:03.5]} 39... c2 {[%clk 0:00:44.1]} 40. Rxb3 {[%clk
0:01:03.8]} 40... h5 {[%clk 0:00:16.2]} 41. Rc3 {[%clk 0:00:59.7]} 41... Rd2+
{[%clk 0:00:16.9]} 42. Ke3 {[%clk 0:00:58.1]} 42... Rd1 {[%clk 0:00:17.5]} 43.
Rxc7 {[%clk 0:00:59.1]} 43... c1=Q+ {[%clk 0:00:13.5]} 44. Rxc1 {[%clk
0:00:59.4]} 44... Rxc1 {[%clk 0:00:15.4]} 45. Bc4 {[%clk 0:01:00.7]} 45... Re1+
{[%clk 0:00:16]} 46. Kf4 {[%clk 0:01:01.7]} 46... g5+ {[%clk 0:00:16.3]} 47. Kf5
{[%clk 0:01:01.9]} 47... h4 {[%clk 0:00:16.1]} 48. gxh4 {[%clk 0:01:02]} 48...
gxh4 {[%clk 0:00:16.6]} 49. Nxf7 {[%clk 0:01:02]} 49... Kf8 {[%clk 0:00:17.6]}
50. Ng5 {[%clk 0:01:02.5]} 50... Rc1 {[%clk 0:00:17.6]} 51. Nh7+ {[%clk
0:01:02.2]} 51... Ke8 {[%clk 0:00:18.6]} 52. f7+ {[%clk 0:01:03.9]} 52... Kd7
{[%clk 0:00:19.9]} 53. Be6+ {[%clk 0:01:04.8]} 1-0

[Event "*** MasterClass Titled Tuesday Blitz"]
[Site "Chess.com"]
[Date "2017.08.01"]
[Round "4"]
[White "SidArun"]
[Black "Blitzking4444"]
[Result "0-1"]
[WhiteElo "2097"]
[BlackElo "2160"]
[TimeControl "180+2"]
[EndTime "13:52:44 PDT"]
[Termination "Blitzking4444 won by resignation"]

1. e4 {[%clk 0:03:01.9]} 1... e6 {[%clk 0:03:00.7]} 2. d4 {[%clk 0:03:02.1]}
2... d5 {[%clk 0:03:01.5]} 3. exd5 {[%clk 0:03:04]} 3... exd5 {[%clk 0:03:02.5]}
4. Nf3 {[%clk 0:03:05.9]} 4... Nc6 {[%clk 0:03:03.4]} 5. Bb5 {[%clk 0:03:06.2]}
5... Ne7 {[%clk 0:03:02.8]} 6. O-O {[%clk 0:03:06.6]} 6... a6 {[%clk 0:03:03.9]}
7. Bd3 {[%clk 0:03:06.9]} 7... Be6 {[%clk 0:03:03.6]} 8. c3 {[%clk 0:03:07.4]}
8... Ng6 {[%clk 0:02:59]} 9. Re1 {[%clk 0:03:08.2]} 9... Bd6 {[%clk 0:02:57.1]}
10. Bf5 {[%clk 0:03:06.5]} 10... Qd7 {[%clk 0:02:07.2]} 11. Ng5 {[%clk
0:03:03.1]} 11... Nd8 {[%clk 0:02:04]} 12. Qg4 {[%clk 0:02:51.4]} 12... Nf8
{[%clk 0:01:58.4]} 13. Nxh7 {[%clk 0:02:22.1]} 13... Rxh7 {[%clk 0:01:07.4]} 14.
Bxh7 {[%clk 0:02:22.7]} 14... Nxh7 {[%clk 0:01:09.3]} 15. Qxg7 {[%clk
0:02:23.9]} 15... Nf8 {[%clk 0:00:56.3]} 16. f4 {[%clk 0:02:24.5]} 16... Be7
{[%clk 0:00:51.4]} 17. f5 {[%clk 0:02:24.2]} 17... Bxf5 {[%clk 0:00:51.5]} 18.
Bg5 {[%clk 0:02:20.8]} 18... Nde6 {[%clk 0:00:49.3]} 19. Qg8 {[%clk 0:01:37.9]}
19... O-O-O {[%clk 0:00:34.7]} 20. Bxe7 {[%clk 0:01:37.8]} 20... Qxe7 {[%clk
0:00:36.6]} 21. Qg3 {[%clk 0:01:37.5]} 21... Qd6 {[%clk 0:00:25.2]} 22. Qxd6
{[%clk 0:01:34]} 22... Rxd6 {[%clk 0:00:27.1]} 23. Nd2 {[%clk 0:01:33.6]} 23...
Kd7 {[%clk 0:00:25.2]} 24. Rf1 {[%clk 0:01:34.1]} 24... Bg6 {[%clk 0:00:23.1]}
25. Nf3 {[%clk 0:01:34.9]} 25... Rb6 {[%clk 0:00:21.8]} 26. Ne5+ {[%clk
0:01:33.7]} 26... Ke7 {[%clk 0:00:22.8]} 27. b3 {[%clk 0:01:30]} 27... Nd7
{[%clk 0:00:19.7]} 28. Nxg6+ {[%clk 0:01:25.5]} 28... fxg6 {[%clk 0:00:20.9]}
29. Rae1 {[%clk 0:01:27.1]} 29... Nf6 {[%clk 0:00:21.7]} 30. Rf3 {[%clk
0:01:20.4]} 30... Ne4 {[%clk 0:00:19.6]} 31. Rfe3 {[%clk 0:01:16.7]} 31... Rd6
{[%clk 0:00:19.5]} 32. c4 {[%clk 0:01:13.4]} 32... c6 {[%clk 0:00:20.8]} 33. c5
{[%clk 0:00:54.4]} 33... Rd8 {[%clk 0:00:20.5]} 34. Rd1 {[%clk 0:00:56]} 34...
Rf8 {[%clk 0:00:21]} 35. g3 {[%clk 0:00:53.5]} 35... Rf7 {[%clk 0:00:15.1]} 36.
b4 {[%clk 0:00:47.8]} 36... Rf8 {[%clk 0:00:14.6]} 37. a4 {[%clk 0:00:48.5]}
37... Ra8 {[%clk 0:00:15.3]} 38. Rb3 {[%clk 0:00:46.9]} 38... Rf8 {[%clk
0:00:15.8]} 39. Re3 {[%clk 0:00:45.8]} 39... Rf7 {[%clk 0:00:16.1]} 40. h4
{[%clk 0:00:46.5]} 40... g5 {[%clk 0:00:09.9]} 41. h5 {[%clk 0:00:46.9]} 41...
g4 {[%clk 0:00:10.4]} 42. b5 {[%clk 0:00:43.4]} 42... axb5 {[%clk 0:00:10.5]}
43. axb5 {[%clk 0:00:44.4]} 43... N6g5 {[%clk 0:00:12.4]} 44. bxc6 {[%clk
0:00:44.4]} 44... bxc6 {[%clk 0:00:13]} 45. Rb1 {[%clk 0:00:45.4]} 45... Rf6
{[%clk 0:00:11.1]} 46. Rb7+ {[%clk 0:00:44.1]} 46... Ke6 {[%clk 0:00:12.4]} 47.
Rg7 {[%clk 0:00:43.9]} 47... Kf5 {[%clk 0:00:12.6]} 48. Rg6 {[%clk 0:00:40.9]}
48... Rxg6 {[%clk 0:00:08.8]} 49. hxg6 {[%clk 0:00:42.1]} 49... Kxg6 {[%clk
0:00:10.7]} 50. Rb3 {[%clk 0:00:43.3]} 50... Nf3+ {[%clk 0:00:11.5]} 0-1

[Event "*** MasterClass Titled Tuesday Blitz"]
[Site "Chess.com"]
[Date "2017.08.01"]
[Round "4"]
[White "belisarius64"]
[Black "dzhumagaliev"]
[Result "0-1"]
[WhiteElo "2339"]
[BlackElo "2523"]
[TimeControl "180+2"]
[EndTime "13:52:46 PDT"]
[Termination "dzhumagaliev won by checkmate"]

1. e4 {[%clk 0:03:01.9]} 1... c5 {[%clk 0:03:01.1]} 2. Nf3 {[%clk 0:03:00.6]}
2... Nc6 {[%clk 0:03:02.4]} 3. Bb5 {[%clk 0:03:01.1]} 3... e6 {[%clk 0:03:03]}
4. O-O {[%clk 0:03:01.8]} 4... Nge7 {[%clk 0:03:03.6]} 5. Re1 {[%clk 0:02:51.9]}
5... a6 {[%clk 0:03:04.2]} 6. Bf1 {[%clk 0:02:52.9]} 6... e5 {[%clk 0:03:04]} 7.
c3 {[%clk 0:02:51.6]} 7... d6 {[%clk 0:03:05.3]} 8. h3 {[%clk 0:02:51.5]} 8...
Ng6 {[%clk 0:02:55.7]} 9. d4 {[%clk 0:02:50.8]} 9... cxd4 {[%clk 0:02:56.6]} 10.
cxd4 {[%clk 0:02:52.7]} 10... Be7 {[%clk 0:02:57.8]} 11. Nc3 {[%clk 0:02:53.4]}
11... O-O {[%clk 0:02:57.4]} 12. d5 {[%clk 0:02:54.8]} 12... Nb8 {[%clk
0:02:57.2]} 13. b4 {[%clk 0:02:55.5]} 13... f5 {[%clk 0:02:54.3]} 14. a4 {[%clk
0:02:37.8]} 14... a5 {[%clk 0:02:38]} 15. bxa5 {[%clk 0:02:36.4]} 15... Qxa5
{[%clk 0:02:32.4]} 16. Bd2 {[%clk 0:02:35.9]} 16... Qd8 {[%clk 0:02:27.7]} 17.
Bd3 {[%clk 0:02:33.6]} 17... f4 {[%clk 0:02:22.5]} 18. Bf1 {[%clk 0:02:27.8]}
18... Na6 {[%clk 0:02:21.2]} 19. Nb5 {[%clk 0:02:28.3]} 19... Nh4 {[%clk
0:02:19.4]} 20. Nxh4 {[%clk 0:02:28.5]} 20... Bxh4 {[%clk 0:02:20.4]} 21. Qf3
{[%clk 0:02:25.5]} 21... Be7 {[%clk 0:01:51.3]} 22. Rec1 {[%clk 0:02:23.4]}
22... Bd7 {[%clk 0:01:41.6]} 23. Qa3 {[%clk 0:02:07.4]} 23... f3 {[%clk
0:01:28.1]} 24. g3 {[%clk 0:01:58.4]} 24... Nc5 {[%clk 0:01:16.3]} 25. Rxc5
{[%clk 0:01:30.9]} 25... dxc5 {[%clk 0:01:15.2]} 26. d6 {[%clk 0:01:32.5]} 26...
Bg5 {[%clk 0:00:49.1]} 27. Bxg5 {[%clk 0:01:23.2]} 27... Qxg5 {[%clk 0:00:51]}
28. Qxc5 {[%clk 0:01:24.9]} 28... Bc6 {[%clk 0:00:40.6]} 29. Nc7 {[%clk
0:01:18.8]} 29... h5 {[%clk 0:00:26.2]} 30. Ne6 {[%clk 0:01:17.8]} 30... Qf6
{[%clk 0:00:23.8]} 31. Nxf8 {[%clk 0:01:18.7]} 31... Rxf8 {[%clk 0:00:25.4]} 32.
Kh2 {[%clk 0:01:13.9]} 32... Kh7 {[%clk 0:00:25.5]} 33. Qe3 {[%clk 0:01:12.2]}
33... Qxd6 {[%clk 0:00:23.3]} 34. a5 {[%clk 0:01:11]} 34... Qd4 {[%clk
0:00:18.2]} 35. Qg5 {[%clk 0:01:06]} 35... Qxf2+ {[%clk 0:00:15.9]} 36. Kh1
{[%clk 0:01:06.9]} 36... Be8 {[%clk 0:00:11.7]} 37. Qxe5 {[%clk 0:01:00.7]}
37... Bg6 {[%clk 0:00:12.9]} 38. Qd6 {[%clk 0:00:45.2]} 38... Rc8 {[%clk
0:00:13]} 39. g4 {[%clk 0:00:33.7]} 39... hxg4 {[%clk 0:00:12.4]} 40. hxg4
{[%clk 0:00:34.6]} 40... Rc2 {[%clk 0:00:07.6]} 41. Qe5 {[%clk 0:00:33]} 41...
Qh4+ {[%clk 0:00:08.3]} 42. Kg1 {[%clk 0:00:33]} 42... Qxg4+ {[%clk 0:00:09.6]}
43. Kh1 {[%clk 0:00:34.5]} 43... Qh4+ {[%clk 0:00:10.7]} 44. Kg1 {[%clk
0:00:35.8]} 44... f2+ {[%clk 0:00:12]} 45. Kg2 {[%clk 0:00:31.5]} 45... Bxe4+
{[%clk 0:00:13.5]} 46. Qxe4+ {[%clk 0:00:33]} 46... Qxe4+ {[%clk 0:00:15.4]} 47.
Kg3 {[%clk 0:00:34.9]} 47... Rc3+ {[%clk 0:00:16.2]} 48. Kh2 {[%clk 0:00:35.6]}
48... Qh4+ {[%clk 0:00:16.9]} 49. Kg2 {[%clk 0:00:37.5]} 49... Qg3+ {[%clk
0:00:18.3]} 50. Kh1 {[%clk 0:00:38.9]} 50... Qg1# {[%clk 0:00:20.2]} 0-1